bitfinex-derivatives/quotes_BTCF0:USTF0_20251202
["timestamp","ask_amount","ask_price","bid_price","bid_amount"]
[1764642846796,0.44160809,86818.0,86817.0,0.38818]
[1764642846993,0.44360809,86818.0,86817.0,0.38818]
[1764642847193,0.44360809,86818.0,86817.0,0.41688]
[1764642847894,0.44360809,86818.0,86817.0,0.38818]
[1764642848089,0.44360809,86818.0,86817.0,0.41688]
[1764642848496,0.44360809,86818.0,86817.0,0.3608]
[1764642848703,0.44360809,86818.0,86817.0,0.38818]
[1764642848903,0.83360809,86818.0,86817.0,0.3608]
[1764642849101,0.81028809,86818.0,86817.0,0.05608]
[1764642849309,0.83360809,86818.0,86817.0,0.05608]
[1764642849608,0.04664,86815.0,86814.0,0.04497]
[1764642849814,0.04664,86815.0,86809.0,0.00017284]
[1764642849815,0.04664,86810.0,86809.0,0.00017284]
[1764642850006,0.42664,86810.0,86809.0,0.05625284]
[1764642850210,0.4506137,86810.0,86809.0,0.05625284]
[1764642852707,0.4516137,86810.0,86809.0,0.05625284]
[1764642854702,0.4516137,86810.0,86809.0,0.02755284]
[1764642854703,0.42764,86810.0,86809.0,0.02755284]
[1764642855304,0.45162008,86810.0,86809.0,0.02755284]
[1764642855499,0.82162008,86810.0,86809.0,0.02755284]
[1764642855927,0.79764,86810.0,86809.0,0.02755284]
[1764642856101,0.42764,86810.0,86809.0,0.05625284]
[1764642856306,0.091,86810.0,86809.0,0.05625284]
[1764642859515,0.00017284,86826.0,86809.0,0.05625284]
[1764642859516,0.04681284,86826.0,86825.0,0.0663482]
[1764642859706,0.42078991,86826.0,86825.0,0.4271482]
[1764642860216,0.84078991,86826.0,86825.0,0.3608]
[1764642860716,0.84178991,86826.0,86825.0,0.3608]
[1764642860907,0.84278991,86826.0,86825.0,0.3608]
[1764642861321,0.84178991,86826.0,86825.0,0.3608]
[1764642863510,0.04664,86815.0,86814.0,0.43312]
[1764642863715,0.46664,86815.0,86814.0,0.43312]
[1764642864910,0.46664,86815.0,86814.0,0.43412]
[1764642866817,0.42,86815.0,86814.0,0.43412]
[1764642867018,0.04681284,86826.0,86825.0,0.05484]
[1764642867216,0.29081286,86826.0,86825.0,0.41564]
[1764642867817,0.24417286,86826.0,86825.0,0.41564]
[1764642868022,0.29081286,86826.0,86825.0,0.41564]
[1764642869023,0.26749286,86826.0,86825.0,0.41564]
[1764642869527,0.29081286,86826.0,86825.0,0.41564]
[1764642871324,0.24417286,86826.0,86825.0,0.41564]
[1764642871519,0.26749286,86826.0,86825.0,0.41564]
[1764642871726,0.29081286,86826.0,86825.0,0.41564]
[1764642874621,0.29081286,86826.0,86825.0,0.05484]
[1764642874817,0.04664,86822.0,86821.0,0.07424]
[1764642875016,0.43064002,86822.0,86821.0,0.07424]
[1764642878125,0.04664,86815.0,86814.0,0.4465596]
[1764642878330,0.41664,86815.0,86814.0,0.4465596]
[1764642879219,0.41664,86815.0,86814.0,0.4475596]
[1764642881430,0.44064242,86815.0,86814.0,0.4475596]
[1764642882421,0.44064242,86815.0,86814.0,0.43604]
[1764642882719,0.44064242,86815.0,86814.0,0.4475596]
[1764642887029,0.44064242,86815.0,86814.0,0.43604]
[1764642889634,0.12732242,86815.0,86814.0,0.43604]
[1764642889940,0.10400242,86815.0,86814.0,0.43504]
[1764642890534,0.40732242,86815.0,86814.0,0.43504]
[1764642890734,0.43064242,86815.0,86814.0,0.43504]
[1764642892541,0.43064242,86815.0,86814.0,0.43604]
[1764642893129,0.43064242,86815.0,86814.0,0.43504]
[1764642893452,0.04664,86810.0,86809.0,0.00017284]
[1764642893640,0.85064242,86810.0,86809.0,0.00017284]
[1764642893837,0.01249,86796.0,86785.0,0.3608]
[1764642894045,0.04664,86786.0,86785.0,0.39018]
[1764642894243,0.43064242,86786.0,86785.0,0.41915]
[1764642895334,0.40664,86786.0,86785.0,0.41915]
[1764642895735,0.40664,86786.0,86785.0,0.42015]
[1764642897734,0.85664,86786.0,86785.0,0.39118]
[1764642898035,0.85664,86786.0,86785.0,0.3618]
[1764642899240,0.85664,86786.0,86785.0,0.3608]
[1764642899440,0.85664,86786.0,86785.0,0.41915]
[1764642899746,0.44664,86786.0,86785.0,0.41915]
[1764642900143,0.40664,86786.0,86785.0,0.41915]
[1764642902352,0.36,86786.0,86785.0,0.41915]
[1764642904555,0.00017284,86794.0,86793.0,0.07348]
[1764642904844,0.42349284,86794.0,86793.0,0.07348]
[1764642905051,0.44681284,86794.0,86793.0,0.07348]
[1764642905247,0.40017284,86794.0,86793.0,0.07348]
[1764642905446,0.44681284,86794.0,86793.0,0.07348]
[1764642905848,0.40017284,86794.0,86793.0,0.07348]
[1764642906042,0.39017284,86794.0,86793.0,0.07348]
[1764642906746,0.39017284,86794.0,86793.0,0.43428]
[1764642906947,0.13017284,86794.0,86793.0,0.43428]
[1764642907143,0.00017284,86794.0,86793.0,0.80428]
[1764642907345,0.00017284,86794.0,86793.0,0.47428]
[1764642907548,0.75924,86821.0,86820.0,0.05683]
[1764642907738,0.81844,86821.0,86820.0,0.05683]
[1764642907942,0.79512,86821.0,86820.0,0.05683]
[1764642908147,0.81844,86821.0,86820.0,0.05683]
[1764642908846,0.79512,86821.0,86820.0,0.05683]
[1764642909239,0.04681284,86829.0,86828.0,0.07348]
[1764642909444,0.40017284,86829.0,86828.0,0.07348]
[1764642910351,0.09017284,86829.0,86828.0,0.07348]
[1764642910547,0.00017284,86829.0,86828.0,0.08502819]
[1764642911056,0.00117284,86829.0,86828.0,0.08502819]
[1764642920158,0.00117284,86829.0,86828.0,0.09654599]
[1764642921453,2.84e-06,86829.0,86828.0,0.09654599]
[1764642922456,2.84e-06,86829.0,86828.0,0.45734599]
[1764642925360,0.00017284,86837.0,86836.0,0.0683467]
[1764642925662,0.04898,86857.0,86856.0,0.07348]
[1764642925955,0.42291373,86857.0,86856.0,0.07348]
[1764642926357,0.39898,86857.0,86856.0,0.07348]
[1764642926758,0.39898,86857.0,86856.0,0.0849941]
[1764642927258,0.35,86857.0,86856.0,0.0849941]
[1764642927853,0.351,86857.0,86856.0,0.0849941]
[1764642931763,0.37549,86857.0,86856.0,0.0849941]
[1764642931954,0.39998,86857.0,86856.0,0.0849941]
[1764642932154,0.39898,86857.0,86856.0,0.0849941]
[1764642932457,0.04909425,86865.0,86864.0,0.05415]
[1764642932655,0.44909425,86865.0,86864.0,0.05415]
[1764642934360,0.49011425,86865.0,86864.0,0.05927]
[1764642934558,0.04898,86857.0,86856.0,0.0871541]
[1764642934761,0.42898,86857.0,86856.0,0.07564]
[1764642935662,0.42798,86857.0,86856.0,0.07564]
[1764642936059,0.00011425,86865.0,86864.0,0.070783]
[1764642936259,0.3608,86887.0,86864.0,0.070783]
[1764642936260,0.04698,86882.0,86881.0,0.05927]
[1764642936455,0.43095846,86882.0,86881.0,0.05927]
[1764642936669,0.55095846,86882.0,86881.0,0.05927]
[1764642936871,0.43095846,86882.0,86881.0,0.05927]
[1764642937262,0.71095846,86882.0,86881.0,0.05927]
[1764642937772,0.71195846,86882.0,86881.0,0.05927]
[1764642938161,0.44195846,86882.0,86881.0,0.05927]
[1764642938773,0.04698,86878.0,86877.0,0.07052381]
[1764642939072,0.46095846,86878.0,86877.0,0.07052381]
[1764642939270,0.46096216,86878.0,86877.0,0.07052381]
[1764642940056,0.46296216,86878.0,86877.0,0.05927]
[1764642940757,0.04698,86874.0,86873.0,0.36097274]
[1764642941068,0.83096392,86874.0,86873.0,0.00017274]
[1764642942174,0.83196392,86874.0,86873.0,0.00017274]
[1764642942760,0.04698,86851.0,86850.0,0.02977]
[1764642942967,0.04698,86849.0,86848.0,0.3608]
[1764642943268,0.41698,86849.0,86848.0,0.39057]
[1764642943474,0.41698,86849.0,86848.0,0.42007]
[1764642944670,0.04698,86849.0,86848.0,0.42007]
[1764642944975,0.49097903,86849.0,86848.0,0.3608]
[1764642945564,0.49097903,86849.0,86848.0,0.3618]
[1764642945875,0.07097903,86849.0,86848.0,0.42107]
[1764642946062,0.07097903,86849.0,86848.0,0.42007]
[1764642946676,0.07197903,86849.0,86848.0,0.42007]
[1764642946878,0.07197903,86849.0,86848.0,0.39057]
[1764642947178,0.07197903,86849.0,86848.0,0.42007]
[1764642947569,0.07197903,86849.0,86848.0,0.05927]
[1764642947769,0.04698,86843.0,86842.0,0.0871559]
[1764642948280,0.04698,86852.0,86851.0,0.05927]
[1764642948477,0.0809946,86852.0,86851.0,0.05927]
[1764642949379,0.0709946,86852.0,86851.0,0.05927]
[1764642949586,0.0719946,86852.0,86851.0,0.05927]
[1764642951072,0.0709946,86852.0,86851.0,0.05927]
[1764642951274,0.0709946,86852.0,86851.0,0.06027]
[1764642951779,0.0709946,86852.0,86851.0,0.05927]
[1764642952087,0.00017274,86857.0,86856.0,0.07564]
[1764642952277,0.00017274,86857.0,86856.0,0.0871541]
[1764642952481,0.02419332,86857.0,86856.0,0.0871541]
[1764642954176,0.04768332,86857.0,86856.0,0.0871541]
[1764642954377,0.04768332,86857.0,86856.0,0.0881541]
[1764642955189,0.07117332,86857.0,86856.0,0.0881541]
[1764642957184,0.02419332,86857.0,86856.0,0.0881541]
[1764642957485,0.07117332,86857.0,86856.0,0.0881541]
[1764642960182,0.07117332,86857.0,86856.0,0.07664]
[1764642960795,0.00017274,86857.0,86856.0,0.07664]
[1764642961294,0.58182,86869.0,86868.0,0.07564]
[1764642961481,0.60585308,86869.0,86868.0,0.07564]
[1764642961687,0.60585308,86869.0,86868.0,0.05927]
[1764642963695,0.60585308,86869.0,86868.0,0.07623]
[1764642965494,0.02403308,86869.0,86868.0,0.0877425]
[1764642965800,0.04698,86880.0,86879.0,0.0693909]
[1764642965983,0.07100725,86880.0,86879.0,0.0693909]
[1764642966295,0.02402725,86880.0,86879.0,0.0693909]
[1764642966997,0.04751725,86880.0,86879.0,0.0693909]
[1764642967195,0.02402725,86880.0,86879.0,0.0693909]
[1764642967591,0.42296737,86898.0,86888.0,0.0115097]
[1764642967795,0.04698,86889.0,86888.0,0.05788]
[1764642967988,0.07099522,86889.0,86888.0,0.05788]
[1764642968894,0.04698,86887.0,86886.0,0.3608]
[1764642969102,0.50099522,86887.0,86886.0,0.3608]
[1764642969294,0.04698,86885.0,86884.0,0.00017264]
[1764642969495,0.04698,86867.0,86866.0,0.3608]
[1764642969801,0.07099522,86867.0,86866.0,0.41868]
[1764642970698,0.02401522,86867.0,86866.0,0.41868]
[1764642970900,0.02401522,86867.0,86866.0,0.42068]
[1764642971392,0.04715231,86875.0,86874.0,0.05788]
[1764642971587,0.07115975,86875.0,86874.0,0.05788]
[1764642971793,0.48115975,86875.0,86874.0,0.05788]
[1764642972102,0.48115975,86875.0,86874.0,0.02806]
[1764642972289,0.10115975,86875.0,86874.0,0.05788]
[1764642973294,0.49115975,86875.0,86874.0,0.05788]
[1764642973805,0.49115975,86875.0,86874.0,0.02806]
[1764642973995,0.49115975,86875.0,86874.0,0.05788]
[1764642974701,0.49115975,86875.0,86874.0,0.02806]
[1764642974903,0.04698,86871.0,86870.0,0.0565322]
[1764642975092,0.07098744,86871.0,86870.0,0.0565322]
[1764642975299,0.07098744,86871.0,86870.0,0.0863522]
[1764642976202,0.04698,86871.0,86870.0,0.0863522]
[1764642976401,0.04698,86867.0,86866.0,0.3608]
[1764642976707,0.04698,86860.0,86859.0,0.4301936]
[1764642978306,0.07100256,86860.0,86859.0,0.4301936]
[1764642979102,0.04698,86860.0,86859.0,0.4301936]
[1764642979304,0.15755756,86869.0,86868.0,0.05788]
[1764642979492,0.47100634,86869.0,86868.0,0.05788]
[1764642979698,0.04698,86865.0,86864.0,0.069393]
[1764642979898,0.07100634,86865.0,86864.0,0.069393]
[1764642983206,0.02402634,86865.0,86864.0,0.069393]
[1764642983406,0.00017231,86875.0,86874.0,0.05788]
[1764642983611,0.02420748,86875.0,86874.0,0.05788]
[1764642983811,0.04769748,86875.0,86874.0,0.05788]
[1764642984506,0.07118748,86875.0,86874.0,0.02806]
[1764642984706,0.07118748,86875.0,86874.0,0.05788]
[1764642984904,0.02420748,86875.0,86874.0,0.05788]
[1764642985108,0.07118748,86875.0,86874.0,0.05788]
[1764642991024,0.07118748,86875.0,86870.0,0.3608]
[1764642991025,0.04698,86871.0,86870.0,0.3608]
[1764642991321,0.20101517,86871.0,86870.0,0.3608]
[1764642991916,0.20101517,86871.0,86870.0,0.38869]
[1764642992111,0.04752517,86871.0,86870.0,0.43334]
[1764642992815,0.02403517,86871.0,86870.0,0.43334]
[1764642993322,0.00017231,86875.0,86874.0,0.05823]
[1764642993520,0.00017231,86875.0,86874.0,0.0697417]
[1764642993815,0.02414347,86875.0,86874.0,0.0697417]
[1764642994215,0.06194991,86896.0,86894.0,0.011509]
[1764642994418,0.04698,86897.0,86896.0,0.05823]
[1764642995003,0.42698,86897.0,86896.0,0.0759]
[1764642995210,0.04698,86894.0,86893.0,0.38981]
[1764642995409,0.67591512,86906.0,86902.0,0.05823]
[1764642995410,0.20453756,86903.0,86902.0,0.05823]
[1764642995710,0.04698,86897.0,86896.0,0.0759]
[1764642997319,0.04798,86897.0,86896.0,0.0759]
[1764642997827,0.04698,86894.0,86893.0,0.41903]
[1764642998719,0.02349,86894.0,86893.0,0.41903]
[1764642999113,0.02449,86894.0,86893.0,0.41903]
[1764643000025,0.001,86894.0,86893.0,0.41903]
[1764643001429,0.00044919,86894.0,86893.0,0.41903]
[1764643002724,0.04698,86899.0,86898.0,0.0759]
[1764643003121,0.02349,86899.0,86898.0,0.0759]
[1764643004028,0.72833756,86908.0,86907.0,0.05823]
[1764643004224,0.96078,86908.0,86907.0,0.05823]
[1764643005534,0.96178,86908.0,86907.0,0.05823]
[1764643006138,0.98564478,86908.0,86907.0,0.05823]
[1764643006731,0.04698,86906.0,86898.0,0.01767]
[1764643006935,0.04698,86899.0,86898.0,0.0759]
[1764643008442,0.02349,86899.0,86898.0,0.0759]
[1764643008642,0.57078,86908.0,86907.0,0.05823]
[1764643008857,0.94464421,86908.0,86907.0,0.05823]
[1764643009345,0.04698,86899.0,86898.0,0.0874084]
[1764643010250,0.07085027,86899.0,86898.0,0.0874084]
[1764643010454,0.47085027,86899.0,86898.0,0.0759]
[1764643011534,0.47085027,86899.0,86898.0,0.02901]
[1764643011845,0.04698,86894.0,86893.0,0.41903]
[1764643012044,0.10085027,86894.0,86893.0,0.41903]
[1764643012436,0.07085027,86894.0,86893.0,0.41903]
[1764643012643,0.45085027,86894.0,86893.0,0.41903]
[1764643013145,0.02387027,86894.0,86893.0,0.41903]
[1764643013342,0.001,86899.0,86898.0,0.0759]
[1764643013739,0.02488749,86899.0,86898.0,0.0759]
[1764643013947,0.55809,86906.0,86905.0,0.0759]
[1764643014250,0.58809,86906.0,86905.0,0.0759]
[1764643014450,0.5346,86906.0,86905.0,0.0759]
[1764643014649,0.02349,86917.0,86916.0,0.0697361]
[1764643014853,0.04698,86917.0,86916.0,0.05823]
[1764643015157,0.40778,86922.0,86921.0,0.05823]
[1764643015455,0.62778,86922.0,86921.0,0.05823]
[1764643016455,0.04698,86913.0,86912.0,0.0759]
[1764643017444,0.24698,86913.0,86912.0,0.0759]
[1764643017844,0.24798,86913.0,86912.0,0.0759]
[1764643018253,0.04798,86913.0,86912.0,0.0759]
[1764643020456,0.04698,86911.0,86910.0,0.38981]
[1764643020759,0.46698,86911.0,86910.0,0.38981]
[1764643021544,0.04698,86909.0,86903.0,0.3608]
[1764643021758,0.43698,86909.0,86903.0,0.3608]
[1764643022359,0.43698,86909.0,86893.0,0.011509]
[1764643022755,0.43698,86909.0,86896.0,0.0115087]
[1764643023046,0.43698,86909.0,86898.0,0.0178]
[1764643023246,0.49889796,86909.0,86908.0,0.05694264]
[1764643023656,0.43698,86909.0,86908.0,0.05694264]
[1764643023856,0.43698,86909.0,86908.0,0.00017264]
[1764643024160,0.49889796,86909.0,86908.0,0.00017264]
[1764643026257,0.43698,86909.0,86908.0,0.00017264]
[1764643027054,0.04698,86892.0,86891.0,0.43524]
[1764643027250,0.47698,86892.0,86891.0,0.43524]
[1764643028463,0.21698,86892.0,86891.0,0.43624]
[1764643028969,0.00017264,86900.0,86899.0,0.05677]
[1764643029457,0.36715264,86900.0,86899.0,0.05677]
[1764643029845,0.04698,86892.0,86891.0,0.43524]
[1764643030049,0.41698,86892.0,86891.0,0.43524]
[1764643030462,0.41698,86892.0,86891.0,0.07444]
[1764643034163,0.41698,86892.0,86891.0,0.02803]
[1764643035161,0.04698,86884.0,86883.0,0.36097264]
[1764643035463,1.03154,86884.0,86883.0,0.41774264]
[1764643035667,0.3608,86897.0,86883.0,0.42925314]
[1764643035965,0.78778,86897.0,86896.0,0.05677]
[1764643036265,1.23206,86897.0,86896.0,0.05677]
[1764643036465,0.82857,86897.0,86896.0,0.05677]
[1764643036667,0.44428,86897.0,86896.0,0.05677]
[1764643037159,0.46777,86897.0,86896.0,0.05677]
[1764643037564,0.49126,86897.0,86896.0,0.05677]
[1764643037766,0.46777,86897.0,86896.0,0.05677]
[1764643038167,0.04698,86892.0,86891.0,0.43537]
[1764643038470,0.44698,86892.0,86891.0,0.43537]
[1764643038861,0.18698,86892.0,86891.0,0.43537]
[1764643040766,0.44698,86892.0,86891.0,0.43537]
[1764643041073,0.44698,86892.0,86891.0,0.02803]
[1764643041269,0.44698,86892.0,86891.0,0.05677]
[1764643041569,0.44698,86892.0,86891.0,0.07457]
[1764643042553,0.80778,86892.0,86891.0,0.05677]
[1764643042856,0.80778,86892.0,86883.0,0.41774264]
[1764643042857,0.04698,86884.0,86883.0,0.41774264]
[1764643043061,0.12698,86884.0,86883.0,0.41774264]
[1764643043361,0.5346,86886.0,86885.0,0.05677]
[1764643044168,0.95158,86886.0,86885.0,0.05677]
[1764643044466,0.04698,86884.0,86883.0,0.38900264]
[1764643044669,0.41698,86884.0,86883.0,0.41774264]
[1764643045173,0.41698,86884.0,86883.0,0.36097264]
[1764643046069,0.41698,86884.0,86883.0,0.38900264]
[1764643046269,0.41698,86884.0,86883.0,0.41774264]
[1764643046571,0.41698,86884.0,86883.0,0.36097264]
[1764643047457,0.41698,86884.0,86883.0,0.00017264]
[1764643047770,0.04698,86874.0,86870.0,0.0178]
[1764643047970,0.98166,86874.0,86870.0,0.0178]
[1764643048576,0.98166,86874.0,86873.0,0.41757]
[1764643048977,0.58166,86874.0,86873.0,0.41757]
[1764643049169,0.70166,86874.0,86873.0,0.41757]
[1764643050376,0.89166,86874.0,86873.0,0.41757]
[1764643052979,0.89166,86874.0,86873.0,0.05677]
[1764643055180,0.04698,86867.0,86866.0,0.41674]
[1764643055486,0.41698,86867.0,86866.0,0.3608]
[1764643056379,0.04698,86866.0,86865.0,0.00017264]
[1764643056580,0.04698,86866.0,86848.0,0.3608]
[1764643056581,0.04698,86849.0,86848.0,0.3608]
[1764643056878,0.04698,86846.0,86845.0,0.3608]
[1764643057083,0.49698,86846.0,86845.0,0.3608]
[1764643057286,0.04698,86839.0,86838.0,0.07249]
[1764643057779,0.02366264,86847.0,86846.0,0.05594]
[1764643058168,0.04715264,86847.0,86846.0,0.05594]
[1764643059585,0.04715264,86847.0,86846.0,0.05794]
[1764643059985,0.00017264,86847.0,86846.0,0.05794]
[1764643060677,0.04715264,86847.0,86846.0,0.05794]
[1764643061086,0.00017264,86847.0,86846.0,0.05794]
[1764643061287,0.00017264,86847.0,86846.0,0.0694554]
[1764643062883,0.00017264,86847.0,86846.0,0.0674554]
[1764643063183,0.00017264,86847.0,86846.0,0.0694554]
[1764643063681,0.04715264,86847.0,86846.0,0.05594]
[1764643063876,0.04715264,86847.0,86846.0,0.05794]
[1764643065875,0.00017264,86847.0,86846.0,0.05794]
[1764643067387,0.04715264,86847.0,86846.0,0.002]
[1764643067589,0.44715264,86847.0,86846.0,0.002]
[1764643068687,0.04698,86835.0,86833.0,8.526e-05]
[1764643068894,0.43698,86835.0,86833.0,8.526e-05]
[1764643069191,0.04698,86834.0,86833.0,8.526e-05]
[1764643069497,0.47698,86834.0,86833.0,8.526e-05]
[1764643070182,0.47698,86834.0,86833.0,0.02811526]
[1764643070583,0.47798,86834.0,86833.0,8.526e-05]
[1764643070783,0.47798,86834.0,86833.0,0.02811526]
[1764643070984,0.16798,86834.0,86833.0,0.05602526]
[1764643072192,0.16698,86834.0,86833.0,0.05602526]
[1764643072397,0.16998,86834.0,86833.0,0.05602526]
[1764643072788,0.16798,86834.0,86833.0,0.05602526]
[1764643073091,0.16998,86834.0,86833.0,0.05602526]
[1764643073696,0.40998,86834.0,86833.0,0.05602526]
[1764643073896,0.08998,86834.0,86833.0,0.05602526]
[1764643074496,0.62514,86834.0,86833.0,0.05602526]
[1764643074799,0.64965715,86834.0,86833.0,0.05602526]
[1764643074986,0.83965715,86834.0,86833.0,0.05602526]
[1764643075586,0.53816,86834.0,86833.0,0.05602526]
[1764643075787,0.003,86834.0,86833.0,0.05602526]
[1764643076499,0.002,86834.0,86833.0,0.05602526]
[1764643076796,0.34324,86841.0,86833.0,0.05602526]
[1764643077002,0.34324,86841.0,86840.0,0.07249]
[1764643077398,0.36777307,86841.0,86840.0,0.07249]
[1764643078100,0.3608,86855.0,86845.0,0.0115154]
[1764643078293,0.3608,86855.0,86846.0,0.05594]
[1764643078294,0.46812,86854.0,86846.0,0.05594]
[1764643078489,0.02453546,86853.0,86846.0,0.05594]
[1764643078695,0.3608,86855.0,86846.0,0.41674]
[1764643079300,0.00117264,86847.0,86846.0,0.41674]
[1764643079804,0.00217264,86847.0,86846.0,0.41674]
[1764643079994,0.00317264,86847.0,86846.0,0.41674]
[1764643080399,0.43015264,86847.0,86846.0,0.38883]
[1764643080592,0.04698,86841.0,86840.0,0.04458]
[1764643080802,0.04698,86841.0,86840.0,0.07249]
[1764643080998,0.33152327,86841.0,86840.0,0.07249]
[1764643081798,0.33352327,86841.0,86840.0,0.07249]
[1764643082102,0.04698,86838.0,86837.0,0.3608]
[1764643082307,0.46152327,86838.0,86837.0,0.3608]
[1764643082506,0.46152327,86838.0,86837.0,0.38883]
[1764643082800,0.22152327,86838.0,86837.0,0.41635]
[1764643083003,0.07152327,86838.0,86837.0,0.41635]
[1764643083205,0.48152327,86838.0,86837.0,0.41635]
[1764643083402,0.24452327,86838.0,86837.0,0.41635]
[1764643085298,0.22103327,86838.0,86837.0,0.41635]
[1764643085506,0.24452327,86838.0,86837.0,0.41635]
[1764643086505,0.04698,86834.0,86833.0,8.526e-05]
[1764643086810,0.15152327,86834.0,86833.0,8.526e-05]
[1764643087198,0.15152327,86834.0,86833.0,0.02943526]
[1764643088698,0.15352327,86834.0,86833.0,0.02943526]
[1764643089103,0.47152327,86834.0,86833.0,8.526e-05]
[1764643089412,0.47352327,86834.0,86833.0,8.526e-05]
[1764643090209,0.16003327,86834.0,86833.0,0.05695526]
[1764643090414,0.67186327,86834.0,86833.0,0.05695526]
[1764643090614,0.56186327,86834.0,86833.0,0.05695526]
[1764643090813,0.97884327,86834.0,86833.0,0.05695526]
[1764643091004,0.75884327,86834.0,86833.0,0.05695526]
[1764643091517,0.94535327,86834.0,86833.0,0.05695526]
[1764643091811,0.56186327,86834.0,86833.0,0.05695526]
[1764643093102,0.97884327,86834.0,86833.0,0.05695526]
[1764643093303,0.56186327,86834.0,86833.0,0.05695526]
[1764643093503,0.02654327,86834.0,86833.0,0.06847236]
[1764643094815,0.02654327,86834.0,86833.0,0.05695526]
[1764643095018,0.43352327,86834.0,86833.0,0.02943526]
[1764643095212,0.43352327,86834.0,86833.0,8.526e-05]
[1764643098415,0.04698,86831.0,86830.0,0.00017264]
[1764643098615,0.04698,86822.0,86821.0,0.43422]
[1764643098918,0.46698,86822.0,86821.0,0.43422]
[1764643099306,0.46706526,86822.0,86821.0,0.43422]
[1764643099506,0.09706526,86822.0,86821.0,0.43422]
[1764643099826,0.04706526,86822.0,86821.0,0.43422]
[1764643100214,0.49706526,86822.0,86821.0,0.43422]
[1764643100414,0.52168614,86822.0,86821.0,0.43422]
[1764643100921,0.13168614,86822.0,86821.0,0.43422]
[1764643101112,0.13268614,86822.0,86821.0,0.43422]
[1764643104320,0.10806526,86822.0,86821.0,0.43422]
[1764643104619,0.04806526,86822.0,86821.0,0.43422]
[1764643104817,0.00108526,86822.0,86821.0,0.43422]
[1764643105322,0.02457526,86822.0,86821.0,0.43422]
[1764643106123,0.00108526,86822.0,86821.0,0.43422]
[1764643106512,0.02545826,86822.0,86821.0,0.43422]
[1764643107012,0.00108526,86822.0,86821.0,0.43422]
[1764643109621,0.0254688,86822.0,86821.0,0.43422]
[1764643112919,0.11681796,86839.0,86837.0,0.02968]
[1764643113124,0.11681796,86839.0,86835.0,0.0280568]
[1764643113125,0.4249,86839.0,86838.0,0.058]
[1764643113311,0.1749,86839.0,86838.0,0.058]
[1764643114018,0.1759,86839.0,86838.0,0.058]
[1764643114324,0.1779,86839.0,86838.0,0.058]
[1764643115331,0.4579,86839.0,86838.0,0.058]
[1764643115516,0.0549,86833.0,86832.0,0.0695172]
[1764643115916,0.02784,86833.0,86832.0,0.0695172]
[1764643117117,0.53512,86842.0,86840.0,0.058]
[1764643117118,0.4157,86841.0,86840.0,0.058]
[1764643117313,0.6857,86841.0,86840.0,0.058]
[1764643119131,0.6867,86841.0,86840.0,0.02832]
[1764643120634,0.0549,86836.0,86835.0,0.07454]
[1764643120932,0.4849,86836.0,86835.0,0.07454]
[1764643121328,0.2149,86836.0,86835.0,0.07454]
[1764643122428,0.3608,86841.0,86835.0,0.07454]
[1764643122627,0.4157,86841.0,86840.0,0.058]
[1764643123926,0.0549,86841.0,86840.0,0.058]
[1764643124840,0.4649,86841.0,86840.0,0.058]
[1764643125036,0.48907806,86841.0,86840.0,0.058]
[1764643129339,0.91907806,86841.0,86840.0,0.058]
[1764643130836,0.48907806,86841.0,86840.0,0.058]
[1764643131042,0.56907806,86841.0,86840.0,0.058]
[1764643132140,0.0549,86836.0,86833.0,0.38912]
[1764643132442,0.0549,86833.0,86817.0,0.3608]
[1764643132632,0.0549,86818.0,86817.0,0.4188]
[1764643132939,1.36438334,86818.0,86817.0,0.058]
[1764643133242,0.0549,86810.0,86809.0,0.4188]
[1764643133438,0.4649,86810.0,86809.0,0.4188]
[1764643133641,0.4649,86810.0,86801.0,0.00017274]
[1764643133642,0.0549,86802.0,86801.0,0.00017274]
[1764643133833,1.47758238,86802.0,86801.0,0.00017274]
[1764643134542,1.47558238,86802.0,86801.0,0.00017274]
[1764643134936,1.47658238,86802.0,86801.0,0.00017274]
[1764643136438,1.47858238,86802.0,86801.0,0.00017274]
[1764643137042,1.47758238,86802.0,86801.0,0.00017274]
[1764643137242,1.47858238,86802.0,86801.0,0.00017274]
[1764643137641,1.03538238,86802.0,86801.0,0.02849274]
[1764643137842,1.24438238,86802.0,86801.0,0.00017274]
[1764643138142,1.46538238,86802.0,86801.0,0.00017274]
[1764643139141,1.4409,86802.0,86801.0,0.05817274]
[1764643139452,1.4419,86802.0,86801.0,0.02849274]
[1764643139647,1.4419,86802.0,86801.0,0.00017274]
[1764643140650,0.0549,86791.0,86790.0,0.4188]
[1764643140951,0.8852,86791.0,86790.0,0.4188]
[1764643141251,0.91304,86791.0,86790.0,0.4188]
[1764643141754,0.9401,86791.0,86790.0,0.4188]
[1764643142455,0.91404,86791.0,86790.0,0.4188]
[1764643143150,0.94402,86791.0,86790.0,0.4188]
[1764643143347,1.39402,86791.0,86790.0,0.3608]
[1764643143548,0.0588,86783.0,86782.0,0.00011523]
[1764643143857,0.0588,86783.0,86772.0,0.3608]
[1764643143858,0.0588,86773.0,86772.0,0.3608]
[1764643144053,0.0588,86772.0,86763.0,0.3608]
[1764643144355,0.0588,86764.0,86763.0,0.38947]
[1764643144563,1.41412,86764.0,86763.0,0.38947]
[1764643145363,1.41420806,86764.0,86763.0,0.38947]
[1764643145550,1.17420806,86764.0,86763.0,0.41716]
[1764643146051,1.17420806,86764.0,86763.0,0.05636]
[1764643146242,1.17420806,86764.0,86763.0,0.05836]
[1764643146442,1.17420806,86764.0,86763.0,0.05936]
[1764643147141,1.17420806,86764.0,86763.0,0.003]
[1764643147340,1.17420806,86764.0,86745.0,0.01136268]
[1764643147341,0.01189,86752.0,86745.0,0.01136268]
[1764643147643,0.0588,86738.0,86737.0,0.43396]
[1764643147845,1.40436961,86738.0,86737.0,0.3608]
[1764643148149,1.40436961,86738.0,86728.0,0.07316]
[1764643148150,0.0588,86729.0,86728.0,0.07316]
[1764643148354,1.36428,86729.0,86728.0,0.02867]
[1764643148650,0.92256961,86729.0,86728.0,0.07316]
[1764643148855,1.37136961,86729.0,86728.0,0.05636]
[1764643149255,1.37136961,86729.0,86728.0,0.05936]
[1764643149754,1.37036961,86729.0,86728.0,0.05636]